Cogmind - Beta 13 @@@ ROGUE MODE // 2024.04.07 @ 22:04:43 Player: ivanmixo Result: Destroyed by G-47 Trooper with Particle Gun Performance ------------- Evolutions (2) 1000 Regions Visited (4) 800 Robots Destroyed (27) 135 Value Destroyed (774) 774 Prototype IDs (0) 0 Alien Tech Used (0) 0 Bonus (0) 0 TOTAL SCORE: 2709 Bonus ------- None Cogmind --------- Core Integrity 0/550 Matter 257/300 Energy 82/100 System Corruption 0% Temperature Cool (9) Movement Core (50) Location -8/Materials Parts ------- > --- POWER (1) -------- (None) > --- PROPULSION (3) --- (None) > --- UTILITY (4) ------ Core Shielding > --- WEAPON (3) ------- (None) > --- INVENTORY (5) ---- (None) Peak State ------------ > --- POWER ------------ Improved Ion Engine > --- PROPULSION ------- Armored Wheel Armored Wheel Armored Wheel > --- UTILITY ---------- Small Storage Unit Core Shielding Core Shielding Shield Generator > --- WEAPON ----------- Beam Rifle Pulse Rifle Light Assault Rifle > --- INVENTORY -------- Light Ion Engine Armored Wheel Core Shielding Spread Laser Light Assault Rifle Light Assault Rifle Heavy Assault Rifle [Rating: 20] Favorites ----------- Power Ion Engine Engine Ion Engine Propulsion Light Treads Treads Light Treads Wheel Armored Wheel Flight Unit Flight Unit Utility Core Shielding Device Shield Generator Storage Small Storage Unit Protection Core Shielding Weapon Assault Rifle Energy Gun Beam Rifle Ballistic Gun Assault Rifle Impact Weapon Flail Build | -11 -10 -10 -9 -8 ------- Run | Yrd Mat Min Mat Mat Slots Evolved 4 | . . . 2 2 Power . | . . . . . Propulsion 1 | . . . . 1 Utility 2 | . . . 2 . Weapon 1 | . . . . 1 Parts Attached 43 | 6 3 1 18 15 Power 5 | 1 1 . 1 2 Engine 5 | 1 1 . 1 2 Core . | . . . . . Reactor . | . . . . . Propulsion 8 | 2 . . 4 2 Treads 2 | 2 . . . . Leg . | . . . . . Wheel 4 | . . . 2 2 Hover . | . . . . . Flight 2 | . . . 2 . Utility 9 | 1 2 . 5 1 Device 2 | . . . 2 . Storage 2 | 1 1 . . . Processor . | . . . . . Hackware . | . . . . . Protection 5 | . 1 . 3 1 Artifact . | . . . . . Weapon 21 | 2 . 1 8 10 Energy Gun 6 | . . . . 6 Energy Cannon . | . . . . . Ballistic Gun 13 | 2 . 1 6 4 Ballistic Cannon . | . . . . . Launcher . | . . . . . Special Weapon . | . . . . . Impact Weapon 2 | . . . 2 . Slashing Weapon . | . . . . . Piercing Weapon . | . . . . . Special Melee Weapon . | . . . . . Unidentified Prototypes . | . . . . . Parts Lost 25 | . 1 . 6 18 Power 4 | . 1 . 1 2 Propulsion 6 | . . . 2 4 Utility 6 | . . . 2 4 Weapon 9 | . . . 1 8 Highest Loss Streak 18 | . 1 . 2 18 To Critical Strikes . | . . . . . Average Slot Usage (%) 91 | . 96 100 89 76 Engine 10 | . 13 14 10 5 Treads 15 | . 28 28 8 . Wheel 3 | . . . . 20 Flight 2 | . . . 6 . Device 3 | . . . 5 6 Storage 12 | . 16 14 11 6 Protection 18 | . 9 14 26 14 Energy Gun 1 | . . . . 9 Ballistic Gun 19 | . 28 28 13 11 Impact Weapon 2 | . . . 7 . Naked Turns . | . . . . . Heaviest Build 23 | 12 15 15 19 23 Greatest Support 40 | 40 40 40 40 36 Greatest Overweight (x) 5 | 2 . . 5 . Average Overweight (x) . | . . . . . Largest Inventory Capacity 8 | 8 8 8 8 8 Average Capacity 7 | 7 8 8 8 7 Most Carried 8 | 2 8 8 8 7 Average Carried 6 | . 5 7 7 5 Final Capacity 8 | 8 8 8 8 5 Final Carried 8 | 2 8 8 8 . Class Distribution -------------------- 78% | Mutant 11% | Scavenger-Mutant 10% | Tank Dominant Class ---------------- Mutant | -10/Materials Mutant | -10/Mines Mutant | -9/Materials Tank | -8/Materials Resources | -11 -10 -10 -9 -8 ----------- Run | Yrd Mat Min Mat Mat Matter Collected 792 | 138 257 130 180 87 Remotely . | . . . . . Salvage Created 831 | . 232 136 281 182 Parts 53 | . 15 7 23 8 Haulers Intercepted . | . . . . . Recyclers Shooed . | . . . . . Parts Field Recycled . | . . . . . Retrieved Matter . | . . . . . Parts Self-Destructed . | . . . . . Prevented . | . . . . . Kills | -11 -10 -10 -9 -8 ------- Run | Yrd Mat Min Mat Mat Combat Hostiles Destroyed 24 | . 5 5 9 5 Melee 1 | . . . 1 . Guns 19 | . 5 5 4 5 Classes Destroyed 7 | . 3 1 1 2 Worker 1 | . 1 . . . Watcher 2 | . 1 . 1 . Swarmer 8 | . . 3 4 1 Grunt 10 | . 5 2 1 2 Duelist 1 | . . . . 1 Sentry 4 | . . . 4 . Hunter 1 | . . . . 1 Best Kill Streak 5 | . 5 3 3 3 Combat Bots Only 3 | . 2 3 3 3 Max Kills in Single Turn 1 | . 1 1 1 1 Gunslinging . | . . . . . Exploded . | . . . . . Melee 1 | . . . 1 . Uniques/NPCs Destroyed . | . . . . . Combat | -11 -10 -10 -9 -8 -------- Run | Yrd Mat Min Mat Mat Hostile Shots Fired 335 | . 36 48 96 155 Missed 83 | . 14 18 23 28 Damage Taken 3296 | . 233 322 883 1858 Core 922 | . 44 43 284 551 Absorbed by Shields 143 | . . . 16 127 Redirected to Shielding 187 | . 10 9 59 109 Core Remaining (%) 64 | 100 . 65 29 . Volleys Fired 111 | . 26 20 31 34 Largest 3 | . 2 2 2 3 Hottest 139 | . 40 40 40 139 Shots Fired 198 | . 52 40 39 67 Gun 198 | . 52 40 39 67 Cannon . | . . . . . Launcher . | . . . . . Special . | . . . . . Kinetic 165 | . 52 40 39 34 Thermal 33 | . . . . 33 Explosive . | . . . . . Electromagnetic . | . . . . . Robot Hit Streak 12 | . 7 8 12 9 Robot Miss Streak 5 | . 5 3 2 4 Penetration Max . | . . . . . Secondary Targets 3 | . . 2 1 . Max Gunslinging Chain 1 | . . 1 1 . Shots Hit Robots 153 | . 30 25 49 49 Core Hits 55 | . 13 8 11 23 Critical Kills . | . . . . . Critical Parts Destroyed 6 | . 1 1 4 . Critical Strikes 7 | . 1 1 4 1 Burn 1 | . . . . 1 Destroy 3 | . 1 1 1 . Smash 3 | . . . 3 . Melee Attacks 25 | . . . 25 . Impact 25 | . . . 25 . Slashing . | . . . . . Piercing . | . . . . . Sneak Attacks . | . . . . . Combat Hostiles . | . . . . . Follow-up Attacks 4 | . . . 4 . Damage Inflicted 2142 | . 393 313 794 642 Guns 1568 | . 388 313 227 640 Cannons . | . . . . . Explosions . | . . . . . Melee 567 | . . . 567 . Ramming 7 | . 5 . . 2 Kinetic 1176 | . 388 313 227 248 Thermal 392 | . . . . 392 Explosive . | . . . . . Electromagnetic . | . . . . . Impact 567 | . . . 567 . Slashing . | . . . . . Piercing . | . . . . . Highest Corruption . | . . . . . Average Corruption . | . . . . . Corruption Purged . | . . . . . Corruption Blocked . | . . . . . Overload Shots . | . . . . . Overflow Damage 143 | . . . 143 . Projectiles . | . . . . . Explosions . | . . . . . Melee 143 | . . . 143 . Knockbacks 1 | . . . 1 . Impact 1 | . . . 1 . Kinetic . | . . . . . Secondary . | . . . . . Self-Inflicted Damage 1 | . . . . 1 Shots . | . . . . . Rammed 6 | . 5 . . 1 Targets Rammed 6 | . 5 . . 1 Kicked . | . . . . . Crushed . | . . . . . Highest Temperature 327 | . . 49 8 327 Average Temperature 80 | . . 14 5 105 Received Heat Transfer 843 | . 132 153 276 282 Siege Activations . | . . . . . Robots Corrupted . | . . . . . Combat Hostiles . | . . . . . Parts Fried 3 | . . . 3 . Impact Corruptions 9 | . . . 9 . Robots Melted . | . . . . . Combat Hostiles . | . . . . . Parts Melted 2 | . . . . 2 Heat Transferred 870 | . . . . 870 Parts Sabotaged . | . . . . . Parts Stolen . | . . . . . Parts Stripped . | . . . . . Power Chain Reactions . | . . . . . Alert | -11 -10 -10 -9 -8 ------- Run | Yrd Mat Min Mat Mat Peak Influence 254 | . 158 135 254 191 Initial 75 | . . . 52 75 Average 91 | . 50 91 117 112 Maximum Alert Level 1 | . . . 1 . Low Security (%) 97 | 100 100 100 94 100 Level 1 2 | . . . 5 . Level 2 . | . . . . . Level 3 . | . . . . . Level 4 . | . . . . . Level 5 . | . . . . . High Security . | . . . . . Max Security . | . . . . . Squads Dispatched 4 | . 2 . . 2 Investigation 2 | . 1 . . 1 Extermination . | . . . . . Reinforcement 1 | . 1 . . . Assault . | . . . . . Garrison 1 | . . . . 1 Intercept . | . . . . . Searches Triggered . | . . . . . Construction Impeded . | . . . . . Haulers Reinforced . | . . . . . Active Scanning Responses . | . . . . . Cargo Convoy Interrupts . | . . . . . Stealth | -11 -10 -10 -9 -8 --------- Run | Yrd Mat Min Mat Mat Distress Signals 5 | . 1 . 1 3 Communications Jammed . | . . . . . Distress Signals . | . . . . . Times Spotted 48 | . 9 5 21 13 Peak Tracking Total 7 | . 3 3 6 7 Tactical Retreats 3 | . . . 2 1 Traps | -11 -10 -10 -9 -8 ------- Run | Yrd Mat Min Mat Mat Traps Triggered . | . . . . . Indirectly . | . . . . . Trap Hack Attempts . | . . . . . Triggered . | . . . . . Disarmed . | . . . . . Reprogrammed . | . . . . . Reused . | . . . . . Traps Extracted . | . . . . . Installed . | . . . . . Triggered . | . . . . . Machines | -11 -10 -10 -9 -8 ---------- Run | Yrd Mat Min Mat Mat Machines Disabled . | . . . . . Max in Single Turn . | . . . . . Machines Repaired . | . . . . . Machines Dismantled . | . . . . . Machines Sabotaged . | . . . . . Overloaded Fab Kills . | . . . . . Hacking | -11 -10 -10 -9 -8 --------- Run | Yrd Mat Min Mat Mat Machines Accessed 6 | . 2 . 3 1 Terminals 6 | . 2 . 3 1 Fabricators . | . . . . . Repair Stations . | . . . . . Recycling Units . | . . . . . Scanalyzers . | . . . . . Garrison Access . | . . . . . Total Hacks 13 | . 6 . 5 2 Successful 3 | . . . 2 1 Failed 10 | . 6 . 3 1 Catastrophic 4 | . 3 . . 1 Database Lockouts . | . . . . . Manual 13 | . 6 . 5 2 Terminals 13 | . 6 . 5 2 Fabricators . | . . . . . Repair Stations . | . . . . . Recycling Units . | . . . . . Scanalyzers . | . . . . . Garrison Access . | . . . . . Terminal Hacks 3 | . . . 2 1 Alert Level 1 | . . . 1 . Zone Layout 2 | . . . 1 1 Fabricator Hacks . | . . . . . Repair Station Hacks . | . . . . . Recycling Unit Hacks . | . . . . . Scanalyzer . | . . . . . Garrison Access Hacks . | . . . . . Unauthorized Hacks . | . . . . . Terminals . | . . . . . Fabricators . | . . . . . Repair Stations . | . . . . . Recycling Units . | . . . . . Scanalyzers . | . . . . . Garrison Access . | . . . . . Data Cores Recovered . | . . . . . Used . | . . . . . Hacking Detections 6 | . 2 . 3 1 Full Trace Events 3 | . 2 . . 1 Feedback Events . | . . . . . Feedback Blocked . | . . . . . Robot Schematics Acquired . | . . . . . Robots Built . | . . . . . Authchips . | . . . . . Time . | . . . . . Total Robot Build Rating . | . . . . . Part Schematics Acquired . | . . . . . Parts Built . | . . . . . Authchips . | . . . . . Time . | . . . . . Total Part Build Rating . | . . . . . Parts Repaired . | . . . . . Time . | . . . . . Parts Recycled . | . . . . . Recycled Matter . | . . . . . Retrieved Matter . | . . . . . Retrieved Components . | . . . . . Parts Scanalyzed . | . . . . . Part Schematics Acquired . | . . . . . Parts Damaged . | . . . . . Bothacking | -11 -10 -10 -9 -8 ------------ Run | Yrd Mat Min Mat Mat Used RIF Installer . | . . . . . Robots Hacked . | . . . . . Non-combat . | . . . . . Combat . | . . . . . Robot Hacks Applied . | . . . . . Relay Couplers Released . | . . . . . Fabnet Peak Effective % . | . . . . . Robots Rewired . | . . . . . Allies Hacked . | . . . . . Hacks Repelled . | . . . . . Allies | -11 -10 -10 -9 -8 -------- Run | Yrd Mat Min Mat Mat Total Allies . | . . . . . Largest Group . | . . . . . Highest-Rated Group . | . . . . . Highest-Rated Ally . | . . . . . Total Orders . | . . . . . Ally Attacks . | . . . . . Total Damage . | . . . . . Kills . | . . . . . Allies Corrupted . | . . . . . Allies Melted . | . . . . . Intel | -11 -10 -10 -9 -8 ------- Run | Yrd Mat Min Mat Mat Robot Analysis Total . | . . . . . Derelict Logs Recovered 1 | . . 1 . . Drone Launches . | . . . . . Drone Recoveries . | . . . . . Exploration | -11 -10 -10 -9 -8 ------------- Run | Yrd Mat Min Mat Mat Turns Passed 1704 | 67 420 277 684 256 Spaces Moved 822 | 38 194 137 338 115 Core 22 | 4 . . 18 . Treads 528 | 34 194 137 163 . Legs . | . . . . . Wheels 134 | . . . 19 115 Hover . | . . . . . Flight 138 | . . . 138 . Fastest Speed 50 | 50 160 160 90 90 Average Speed 141 | 151 160 160 140 90 Slowest Speed 300 | 160 160 160 300 90 Overloaded Moves . | . . . . . Propulsion Burnouts . | . . . . . Robots Hopped . | . . . . . Cave-ins Triggered . | . . . . . Exploration Rate (%) 27 | 3 46 42 35 13 Regions Visited 4 Branch Regions 1 Pre-discovered Areas 1 | . . 1 . . Known Exits Taken . | . . . . . Unknown Exits Taken 4 | 1 1 1 1 . Scrap Searched . | . . . . . Spaces Dug . | . . . . . Terrain Destroyed . | . . . . . Melee . | . . . . . Projectile . | . . . . . AOE . | . . . . . Terrain Rammed . | . . . . . Walls Destroyed . | . . . . . Machines Disabled . | . . . . . Actions | -11 -10 -10 -9 -8 --------- Run | Yrd Mat Min Mat Mat Total 1147 | 45 249 158 483 212 Wait 110 | . 12 . 52 46 Move 818 | 37 193 136 337 115 Hop . | . . . . . Pick Up 21 | 2 8 . 10 1 Fast Attach 15 | 6 1 . 7 1 Attach 15 | . 2 . 4 9 Detach 4 | . 1 . 3 . Swap 13 | . . 1 7 5 Drop 13 | . 1 1 11 . Fire 111 | . 26 20 31 34 Melee 21 | . . . 21 . Ram 1 | . . . . 1 Kick . | . . . . . Crush 5 | . 5 . . . Escape Stasis . | . . . . . Rewire . | . . . . . Trap . | . . . . . Miscellaneous . | . . . . . Route ------- -11/Scrapyard -10/Materials (discovered 2 exits: *Mat / [*Min]) -10/Mines -9/Materials -8/Materials History --------- Turn | Location | Event 6 | -11/Scrapyard | Discovered new exit (range 16) 68 | -11/Scrapyard | Entered Materials 307 | -10/Materials | Build established: Mutant 389 | -10/Materials | Discovered new exit (range 10) 467 | -10/Materials | Discovered new exit (range 12) 488 | -10/Materials | Entered Mines 746 | -10/Mines | Discovered new exit (range 13) 757 | -10/Mines | Learned location of Recycling (-7) 765 | -10/Mines | Entered Materials 765 | -9/Materials | Evolved 2 slots: Utility x2 1176 | -9/Materials | Core integrity fell below 50% 1383 | -9/Materials | Discovered new exit (range 16) 1449 | -9/Materials | Entered another Materials area 1449 | -8/Materials | Evolved 2 slots: Propulsion x1, Weapon x1 1619 | -8/Materials | Garrison activated, responded to threat 1651 | -8/Materials | Core integrity fell below 50% 1701 | -8/Materials | Core integrity fell below 20% 1705 | -8/Materials | Destroyed by G-47 Trooper with Particle Gun Last Messages --------------- 01669_ K-01 Serf collects debris. 01675_ G-47 Trooper destroyed. 01675_ Slug penetrates Wall. 01677_ Spread Laser destroyed. 01677_ Slammed into G-47 Trooper. 01678_ Acquired 10 matter. 01679_ K-01 Serf collects debris. 01681_ Slug penetrates Material Compactor. 01682_ K-01 Serf collects debris. 01689_ Acquired Particle Gun. 01691_ K-01 Serf collects debris. 01692_ S-10 Pest destroyed. 01694_ K-01 Serf collects debris. 01694_ Arm. Wheel destroyed. 01698_ K-01 Serf collects debris. 01699_ Particle Gun destroyed. 01699_ R-06 Scavenger collects Flight Unit. 01701_ K-01 Serf collects debris. 01702_ R-06 Scavenger collects Flight Unit. 01705_ K-01 Serf collects debris. Map ----- +----------------------------------------------------+ | ???????????# #?????????????????????????????????? | | ???????????# #?????#######?????????????????????? | | ???????????# ####### #?????????????????????? | | ???????????# #?????????????????????? | | ???????????# #?????????????????????? | | ???????????# #?????????????????????? | | ???????????########### #?????????????????????? | | ????????????########### ###########????????????? | | ????????????# ! # # #????????????? | | ????????????# # # "T" #????????????? | | ????????????#* ! + + #????????????? | | ????????????# # # #????????????? | | ????????????# """ """ # # """ """ #????????????? | | ????????????? """ """ # # """ """ #????????????? | | ??????????????""" """ # # """ """ #????????????? | | ?????????????? # # #????????????? | | ??????????????######### ###########????????????? | | ?????????####??######## #?????# #??????????????? | | ?????????#"""??# ^ =#?????# #??????????????? | | ?????????#"R"??# #?????# #??????????????? | | ????????##" "### ^ #?????# #??????????????? | | ????????# # """ *#?????# #??????????????? | | ????????# !#^ """"sg#?????# #??????????????? | | ????????# """ # """" #?????# #??????????????? | | ????????# """ /% k """"r #?????# #??????????????? | | ????????# """ # """ @#??????????????????????? | | ????????# # h #??????????????????????? | | ????????######## m #??????????????????????? | | ???????########m !! g #?????????????????????? | | ???????# =! #?????????????????????? | | ???????# = a g/ "???????????????????? | | ???????# ! # "???????????????????? | | ???????# #?????????????????????? | | ???????# #################?????????????????????? | | ???????# ??????????????????????????????????????? | | ?????? + ???????????????????????????????????????? | | ????? # ????????????????????????????????????????? | | ???? ?#?????????????????????????????????????????? | | ???##????????????????????????????????????????????? | | ?????????????????????????????????????????????????? | | ?????????????????????????????????????????????????? | | ?????????????????????????????????????????????????? | | ?????????????????????????????????????????????????? | | ?????????????????????????????????????????????????? | | ?????????????????????????????????????????????????? | | ?????????????????????????????????????????????????? | | ?????????????????????????????????????????????????? | | ?????????????????????????????????????????????????? | | ?????????????????????????????????????????????????? | | ?????????????????????????????????????????????????? | +----------------------------------------------------+ Best States ------------- Heat Dissipation 38 Energy Generation 12 Energy Capacity 265 Matter Stores 300 Matter Capacity 350 Sight Range 16 Terrain Scan Density 10 Armor Coverage 150 Core Shielding 20 Evasion (%) 42 Recoil Reduction 2 Item Schematics ----------------- None Robot Schematics ------------------ None Fabricated ------------ Nothing Alien Tech Used ----------------- None Achievements -------------- None Challenges ------------ None Game ------ Seed SuspensionRestorationCasing Manual? 0 Play Time 00:17:10 Cumulative 5.2 hours Start 2024.04.07 @ 21:47:58 End 2024.04.07 @ 22:04:43 Sessions 1 Manual Loads 0 Difficulty Rogue Special Mode None Game No. 9 Rogue 9 Adventurer 0 Explorer 0 Win Type - Total 0 Types 0/0/0/0/0/0/0/0/0 Lore% 1 Gallery% 11 Achievement% 8 Wizard Run 0 Options --------- Layout 1 ASCII 0 Keyboard 0 Movement Numpad Keybinds 0 Fullscreen 2 Font 24/Smallcaps Map View 50x35 Zoom Use 0% Tactical HUD 1 Map Filters NONE Filters NONE Steam 1 RUN: 03d51d21-2521-4963-89f0-ca27a6623183